Cogmind - Beta 15 *** ADVENTURER MODE // 2025.05.09 @ 00:50:00 Player: magnuss27 Result: Destroyed by B-75 Beast with Heavy Plasma Cannon Performance ------------- Evolutions (4) 2000 Regions Visited (5) 1000 Robots Destroyed (116) 580 Value Destroyed (3769) 3769 Prototype IDs (16) 320 Alien Tech Used (0) 0 Bonus (0) 0 TOTAL SCORE: 7669 Bonus ------- None Cogmind --------- Core Integrity 0/850 Matter 69/300 Energy 100/100 System Corruption 0% Temperature Cool (12) Movement Core (1400) Ox27 Location -6/Factory Parts ------- > --- POWER (2) -------- (None) > --- PROPULSION (4) --- (None) > --- UTILITY (6) ------ Huge Storage Unit > --- WEAPON (3) ------- Heavy Hammer > --- INVENTORY (25) --- Angular Momentum Engine Light Fission Core Coolant Injector Huge Storage Unit Peak State ------------ > --- POWER ------------ Deuterium Engine Micro Nuclear Core > --- PROPULSION ------- Armored Huge Wheel Improved Cesium-ion Thruster > --- UTILITY ---------- Cryofiber Web Huge Storage Unit Kinecellerator Medium Armor Plating Hardlight Generator System Shield > --- WEAPON ----------- Heavy Ion Cannon Precision Assault Rifle > --- INVENTORY -------- Deuterium Engine Deuterium Engine Deuterium Engine Micro Nuclear Core Armored Wheel Armored Wheel Armored Wheel Huge Storage Unit Target Analyzer Improved Light Armor Plating EM Disruption Field Heavy EM Shotgun Arc Projector Pulse Rifle Heavy Particle Gun Shotgun Minigun High-powered Shotgun Flak Gun Light Cannon Flak Cannon [Rating: 51] Favorites ----------- Power Deuterium Engine Engine Deuterium Engine Power Core Micro Nuclear Core Propulsion Armored Wheel Treads Armored Treads Leg Aluminum Leg Wheel Armored Wheel Hover Unit Cooled Airjet Flight Unit Cesium-ion Thruster Utility Huge Storage Unit Device Improved Heat Sink Storage Huge Storage Unit Processor Visual Processing Unit Hackware System Shield Protection Medium Armor Plating Weapon Ion Cannon Energy Gun Heavy EM Pulse Gun Energy Cannon Ion Cannon Ballistic Gun Light Assault Rifle Ballistic Cannon Flak Cannon Launcher Advanced EMP Blaster Impact Weapon Heavy Hammer Slashing Weapon Power Sword Build | -11 -10 -9 -8 -7 -6 ------- Run | Yrd Mat Mat Mat Fac Fac Slots Evolved 8 | . . 2 2 2 2 Power 1 | . . . 1 . . Propulsion 2 | . . . 1 . 1 Utility 4 | . . 2 . 2 . Weapon 1 | . . . . . 1 Parts Attached 99 | 6 8 26 15 27 17 Power 13 | 1 1 4 1 4 2 Engine 10 | 1 1 4 1 2 1 Core 3 | . . . . 2 1 Reactor . | . . . . . . Propulsion 20 | 2 3 4 4 4 3 Treads 1 | . . . 1 . . Leg 9 | 2 3 2 1 . 1 Wheel 6 | . . 2 1 3 . Hover 2 | . . . . . 2 Flight 2 | . . . 1 1 . Utility 30 | 1 2 12 3 9 3 Device 12 | . . 3 1 6 2 Storage 5 | 1 1 3 . . . Processor 6 | . 1 1 2 1 1 Hackware 3 | . . 2 . 1 . Protection 4 | . . 3 . 1 . Artifact . | . . . . . . Weapon 36 | 2 2 6 7 10 9 Energy Gun 13 | 1 . 4 2 3 3 Energy Cannon 4 | . 1 . . 2 1 Ballistic Gun 10 | 1 1 2 . 5 1 Ballistic Cannon 3 | . . . 1 . 2 Launcher 2 | . . . 2 . . Special Weapon . | . . . . . . Impact Weapon 3 | . . . 2 . 1 Slashing Weapon 1 | . . . . . 1 Piercing Weapon . | . . . . . . Special Melee Weapon . | . . . . . . Unidentified Prototypes 11 | . . 3 4 2 2 Parts Lost 43 | . 1 2 1 20 19 Power 7 | . . . . 3 4 Propulsion 7 | . . . . 4 3 Utility 10 | . . 1 . 4 5 Weapon 19 | . 1 1 1 9 7 Highest Loss Streak 14 | . 1 1 1 14 7 To Critical Strikes . | . . . . . . Average Backups 10 | 2 7 7 13 15 8 Power 2 | . 1 1 2 2 2 Propulsion 1 | . . 2 1 1 . Utility 2 | . 2 . 3 3 2 Weapon 4 | 1 2 3 7 7 2 Tool/Special . | . . . . . . Unused Backups 19 | . 3 7 6 . 3 Power 5 | . 1 2 1 . 1 Propulsion 2 | . . 1 1 . . Utility 7 | . . 4 1 . 2 Weapon 4 | . 1 . 3 . . Tool/Special 1 | . 1 . . . . Average Slot Usage (%) 91 | . 98 99 98 89 69 Engine 10 | . 14 10 17 7 5 Core 2 | . . . . 6 5 Leg 8 | . 27 13 . . 1 Wheel 11 | . . 8 26 18 3 Device 9 | . . 8 12 17 8 Storage 10 | . 14 14 8 7 6 Processor 7 | . 12 6 5 3 11 Hackware 2 | . . 2 . 6 5 Protection 4 | . . 10 8 5 . Energy Gun 5 | . 2 8 10 2 2 Energy Cannon 4 | . 7 1 . 4 9 Ballistic Gun 6 | . 17 11 . 3 . Ballistic Cannon 2 | . . . 7 4 3 Peak Build Rating 51 | 6 9 22 33 51 46 Average Rating 25 | 3 7 16 28 37 37 On Entrance 16 | . 6 9 21 29 32 Naked Turns . | . . . . . . Heaviest Build 126 | 13 29 105 118 126 121 Greatest Support 40 | 20 20 24 36 40 15 Greatest Overweight (x) 15 | 3 1 7 3 8 15 Average Overweight (x) 3 | . . 2 2 3 8 Largest Inventory Capacity 25 | 8 15 25 25 25 25 Average Capacity 21 | 7 13 21 24 25 25 Most Carried 22 | 6 11 14 20 22 13 Average Carried 10 | 2 7 7 13 15 8 Final Capacity 25 | 8 15 25 25 25 25 Final Carried 13 | 2 10 12 13 5 4 Class Distribution -------------------- 51% | Mutant 23% | Hacker-Mutant 13% | Hacker-Gunner 11% | Scavenger-Mutant Dominant Class ---------------- Mutant | -10/Materials Mutant | -9/Materials Mutant | -8/Materials Hacker-Mutant | -7/Factory Hacker-Gunner | -6/Factory Resources | -11 -10 -9 -8 -7 -6 ----------- Run | Yrd Mat Mat Mat Fac Fac Matter Collected 2309 | 246 207 510 420 669 257 Remotely . | . . . . . . Salvage Created 4553 | . 421 1260 503 924 1445 Parts 243 | . 34 81 31 50 47 Haulers Intercepted 11 | . 1 4 3 . 3 Recyclers Shooed 5 | . 1 1 . . 3 Parts Field Recycled . | . . . . . . Retrieved Matter . | . . . . . . Parts Self-Destructed . | . . . . . . Prevented . | . . . . . . Kills | -11 -10 -9 -8 -7 -6 ------- Run | Yrd Mat Mat Mat Fac Fac Combat Hostiles Destroyed 83 | . 11 25 6 19 22 Guns 44 | . 7 22 2 9 4 Cannons 38 | . 3 3 4 10 18 AOE 1 | . 1 . . . . Classes Destroyed 16 | . 4 4 1 4 3 Worker 3 | . . 1 . . 2 Builder 2 | . . 1 1 . . Tunneler 1 | . . . 1 . . Hauler 11 | . 1 4 3 . 3 Recycler 3 | . . 1 . 2 . Operator 1 | . . . . . 1 Watcher 12 | . 3 3 3 1 2 Swarmer 20 | . 6 10 . 4 . Grunt 37 | . 5 9 3 6 14 Brawler 2 | . . . . . 2 Duelist 1 | . . . . . 1 Sentry 12 | . . 6 3 1 2 Specialist 2 | . . . . 2 . Hunter 4 | . . . . 2 2 Programmer 2 | . . . . 1 1 Heavy 3 | . . . . 3 . Best Kill Streak 7 | . 3 7 5 5 5 Combat Bots Only 7 | . 3 7 3 5 5 Max Kills in Single Turn 2 | . 1 1 2 1 2 Gunslinging . | . . . . . . Exploded 1 | . 1 . . . . Melee . | . . . . . . Uniques/NPCs Destroyed . | . . . . . . Combat | -11 -10 -9 -8 -7 -6 -------- Run | Yrd Mat Mat Mat Fac Fac Hostile Shots Fired 694 | . 66 133 17 237 241 Missed 199 | . 18 33 6 68 74 Hits 495 | . 48 100 11 169 167 Melee 1 | . . . . . 1 Projectile 494 | . 48 100 11 169 166 Critical Strikes 14 | . 1 2 . 9 2 Actively Blocked 1 | . . 1 . . . Damage Taken 6990 | . 395 914 187 2981 2513 Core 1679 | . 97 160 28 528 866 Absorbed by Shields 256 | . . . 5 251 . Redirected to Shielding 20 | . . 20 . . . Ignored by Resistances 1932 | . 127 264 54 783 704 Regen/Repaired (Parts) 641 | . . . 480 101 60 Core Remaining (%) 67 | 100 61 60 94 24 . Volleys Fired 356 | . 51 106 30 78 91 Largest 3 | . 2 2 2 2 3 Hottest 205 | . 80 125 87 120 205 Shots Fired 702 | . 101 182 60 138 221 Gun 431 | . 93 167 30 79 62 Cannon 271 | . 8 15 30 59 159 Launcher . | . . . . . . Special . | . . . . . . Kinetic 354 | . 67 103 30 79 75 Thermal 263 | . 8 69 . 50 136 Explosive . | . . . . . . Electromagnetic 85 | . 26 10 30 9 10 Robot Hit Streak 22 | . 12 22 19 19 22 Robot Miss Streak 6 | . 3 3 6 3 3 Penetration Max . | . . . . . . Secondary Targets 5 | . . 5 . . . Max Gunslinging Chain 1 | . . 1 . . . Shots Hit Robots 532 | . 63 132 51 118 168 Core Hits 256 | . 28 51 41 71 65 Critical Kills 1 | . . . . . 1 Critical Parts Destroyed 3 | . 1 1 . 1 . Critical Strikes 21 | . 1 4 . 2 14 Burn 5 | . . 1 . 1 3 Meltdown 1 | . . . . . 1 Destroy 3 | . 1 1 . 1 . Blast 10 | . . . . . 10 Corrupt 2 | . . 2 . . . Melee Attacks . | . . . . . . Impact . | . . . . . . Slashing . | . . . . . . Piercing . | . . . . . . Sneak Attacks . | . . . . . . Combat Hostiles . | . . . . . . Follow-up Attacks . | . . . . . . Damage Inflicted 10901 | . 722 1896 1206 2821 4256 Guns 5130 | . 541 1782 487 1401 919 Cannons 5463 | . 124 104 539 1368 3328 Explosions 289 | . 57 . 180 52 . Melee . | . . . . . . Ramming 19 | . . 10 . . 9 Kinetic 5099 | . 292 1012 539 1528 1728 Thermal 4539 | . 181 739 180 1167 2272 Explosive . | . . . . . . Electromagnetic 1244 | . 249 135 487 126 247 Impact . | . . . . . . Slashing . | . . . . . . Piercing . | . . . . . . Highest Corruption 12 | . . . . 12 . Average Corruption 7 | . . . . 7 . Corruption Purged . | . . . . . . Corruption Blocked . | . . . . . . Effects 18 | . . . . 18 . Message Errors 3 | . . . . 3 . Matter Fused 2 | . . . . 2 . Heat Flow Errors 1 | . . . . 1 . Energy Discharges 1 | . . . . 1 . Parts Fused 1 | . . . . 1 . Data Loss (minor) 4 | . . . . 4 . Data Loss (major) 2 | . . . . 2 . Misfires 2 | . . . . 2 . Weapon Failures 2 | . . . . 2 . Overload Shots . | . . . . . . Overflow Damage 101 | . . . 39 1 61 Projectiles 62 | . . . . 1 61 Explosions 39 | . . . 39 . . Melee . | . . . . . . Knockbacks 22 | . . . 9 7 6 Impact . | . . . . . . Kinetic 20 | . . . 8 6 6 Secondary 2 | . . . 1 1 . Self-Inflicted Damage 41 | . 25 5 7 . 4 Shots 2 | . 1 . 1 . . Rammed 2 | . . 1 . . 1 Targets Rammed 2 | . . 1 . . 1 Kicked . | . . . . . . Crushed . | . . . . . . Highest Temperature 579 | . 238 456 42 554 579 Average Temperature 122 | . 50 95 16 146 161 Received Heat Transfer 1650 | . 168 378 96 383 625 Effects 26 | . 1 1 . 8 16 Shutdowns 7 | . . 1 . . 6 Energy Bleed 5 | . 1 . . 3 1 Interference 1 | . . . . . 1 Short Circuit 3 | . . . . 2 1 Damage (minor) 4 | . . . . . 4 Damage (major) 6 | . . . . 3 3 Siege Activations . | . . . . . . Martial Activations . | . . . . . . Shielding Activations . | . . . . . . Robots Disrupted . | . . . . . . Combat Hostiles . | . . . . . . Robots Corrupted . | . . . . . . Combat Hostiles . | . . . . . . Parts Fried 1 | . . . 1 . . Impact Corruptions . | . . . . . . Robots Melted 2 | . . . . . 2 Combat Hostiles . | . . . . . . Parts Melted 8 | . . 2 . 1 5 Heat Transferred 8365 | . 359 1813 150 1752 4291 Parts Sabotaged . | . . . . . . Parts Stolen . | . . . . . . Parts Stripped . | . . . . . . Power Chain Reactions 5 | . 1 . 3 1 . Alert | -11 -10 -9 -8 -7 -6 ------- Run | Yrd Mat Mat Mat Fac Fac Maximum Alert Level 1 | . . . . 1 . Low Security (%) 94 | 100 100 100 100 71 100 Level 1 5 | . . . . 28 . Level 2 . | . . . . . . Level 3 . | . . . . . . Level 4 . | . . . . . . Level 5 . | . . . . . . High Security . | . . . . . . Max Security . | . . . . . . Peak Influence 311 | . 81 161 80 311 169 Initial 122 | . . . 25 . 122 Average 51 | . 18 70 15 83 64 Influence Increases 2782 | . 339 721 277 798 647 Destroy 0b10 Robot/C 1660 | . 220 500 120 380 440 Destroy 0b10 Robot/NC 165 | . 20 50 40 15 40 Destroy Leader 426 | . 48 124 52 122 80 Successful Hack 204 | . 48 35 50 20 51 Disable Machine 81 | . . 9 . 45 27 Destroy Structure 81 | . 3 3 15 51 9 Lose Combat Pursuer 165 | . . . . 165 . Influence Decreases 2782 | . 339 649 349 507 938 Entered New Map 216 | . . . 47 . 169 Time Decay 2164 | . 299 629 296 307 633 Lost Part 347 | . 10 20 . 200 117 Lost Ally 19 | . . . . . 19 Purge Threat 36 | . 30 . 6 . . Squads Dispatched 16 | . 1 . . 9 6 Investigation 2 | . 1 . . . 1 Extermination 3 | . . . . 2 1 Reinforcement 8 | . . . . 7 1 Assault . | . . . . . . Garrison 3 | . . . . . 3 Intercept . | . . . . . . Searches Triggered . | . . . . . . Construction Impeded 2 | . . . . 2 . Haulers Reinforced 1 | . . . . . 1 Active Scanning Responses . | . . . . . . Cargo Convoy Interrupts 1 | . . . . 1 . Stealth | -11 -10 -9 -8 -7 -6 --------- Run | Yrd Mat Mat Mat Fac Fac Distress Signals 7 | . . 3 1 1 2 Communications Jammed . | . . . . . . Distress Signals . | . . . . . . Times Spotted 130 | . 23 34 13 31 29 Peak Tracking Total 7 | . 4 7 3 6 4 Tactical Retreats 9 | . . . . 9 . Traps | -11 -10 -9 -8 -7 -6 ------- Run | Yrd Mat Mat Mat Fac Fac Traps Triggered 2 | . 1 . 1 . . Indirectly . | . . . . . . Trap Hack Attempts . | . . . . . . Triggered . | . . . . . . Disarmed . | . . . . . . Reprogrammed . | . . . . . . Reused . | . . . . . . Traps Extracted . | . . . . . . Installed . | . . . . . . Triggered . | . . . . . . Machines | -11 -10 -9 -8 -7 -6 ---------- Run | Yrd Mat Mat Mat Fac Fac Machines Disabled 9 | . . 1 . 5 3 Max in Single Turn 4 | . . 1 . 4 1 Machines Repaired . | . . . . . . Machines Dismantled . | . . . . . . Machines Sabotaged . | . . . . . . Overloaded Fab Kills . | . . . . . . Hacking | -11 -10 -9 -8 -7 -6 --------- Run | Yrd Mat Mat Mat Fac Fac Machines Accessed 33 | . 9 6 9 4 5 Terminals 26 | . 7 6 7 3 3 Fabricators 1 | . . . . . 1 Repair Stations 4 | . . . 2 1 1 Recycling Units 2 | . 2 . . . . Scanalyzers . | . . . . . . Garrison Access . | . . . . . . Total Hacks 105 | . 30 14 24 18 19 Successful 57 | . 17 6 15 8 11 Failed 48 | . 13 8 9 10 8 Catastrophic 5 | . . 1 1 2 1 Database Lockouts . | . . . . . . Manual . | . . . . . . Terminals 82 | . 27 14 17 11 13 Fabricators 3 | . . . . . 3 Repair Stations 17 | . . . 7 7 3 Recycling Units 3 | . 3 . . . . Scanalyzers . | . . . . . . Garrison Access . | . . . . . . Terminal Hacks 40 | . 14 6 9 3 8 Record 12 | . . 1 2 2 7 Robot Analysis 4 | . 1 2 1 . . Prototype ID Bank 3 | . 2 . 1 . . Open DSF 2 | . . . . 1 1 Emergency Access Points 1 | . . . 1 . . Repair Station Index 2 | . 1 1 . . . Alert Level 2 | . 1 . 1 . . Unreport Threat 2 | . 1 . 1 . . Locate Traps 3 | . 2 . 1 . . Security Status 1 | . 1 . . . . Surveillance Status 2 | . 2 . . . . Patrol Status 2 | . 1 . 1 . . Transport Status 1 | . 1 . . . . Hauler Manifests 2 | . . 2 . . . Registered Components 1 | . 1 . . . . Fabricator Hacks 1 | . . . . . 1 Build 1 | . . . . . 1 Repair Station Hacks 13 | . . . 6 5 2 Scan Component 7 | . . . 3 3 1 Repair 6 | . . . 3 2 1 Recycling Unit Hacks 3 | . 3 . . . . Process 1 | . 1 . . . . Retrieve Components 2 | . 2 . . . . Scanalyzer . | . . . . . . Garrison Access Hacks . | . . . . . . Unauthorized Hacks . | . . . . . . Terminals . | . . . . . . Fabricators . | . . . . . . Repair Stations . | . . . . . . Recycling Units . | . . . . . . Scanalyzers . | . . . . . . Garrison Access . | . . . . . . Data Cores Recovered . | . . . . . . Used . | . . . . . . Hacking Detections 30 | . 7 6 9 4 4 Full Trace Events 1 | . . . . . 1 Feedback Events . | . . . . . . Feedback Blocked . | . . . . . . Robot Schematics Acquired . | . . . . . . Robots Built 2 | . . . . . 2 Authchips . | . . . . . . Time 58 | . . . . . 58 Total Robot Build Rating 6 | . . . . . 6 Part Schematics Acquired . | . . . . . . Parts Built . | . . . . . . Authchips . | . . . . . . Time . | . . . . . . Total Part Build Rating . | . . . . . . Parts Repaired 6 | . . . 3 2 1 Time 176 | . . . 90 64 22 Parts Recycled . | . . . . . . Recycled Matter . | . . . . . . Retrieved Matter . | . . . . . . Retrieved Components 9 | . 9 . . . . Parts Scanalyzed . | . . . . . . Part Schematics Acquired . | . . . . . . Parts Damaged . | . . . . . . Bothacking | -11 -10 -9 -8 -7 -6 ------------ Run | Yrd Mat Mat Mat Fac Fac Used RIF Installer . | . . . . . . Robots Hacked . | . . . . . . Non-combat . | . . . . . . Combat . | . . . . . . Robot Hacks Applied . | . . . . . . Relay Couplers Released . | . . . . . . Fabnet Peak Effective % . | . . . . . . Robots Rewired . | . . . . . . Allies Hacked . | . . . . . . Hacks Repelled . | . . . . . . Allies | -11 -10 -9 -8 -7 -6 -------- Run | Yrd Mat Mat Mat Fac Fac Total Allies 2 | . . . . . 2 Largest Group 2 | . . . . . 2 Highest-Rated Group 26 | . . . . . 26 Highest-Rated Ally 13 | . . . . . 13 Total Orders . | . . . . . . Ally Attacks . | . . . . . . Total Damage . | . . . . . . Kills . | . . . . . . Allies Corrupted . | . . . . . . Allies Melted . | . . . . . . Intel | -11 -10 -9 -8 -7 -6 ------- Run | Yrd Mat Mat Mat Fac Fac Active Infowar (turns) 3328 | . 1236 924 . . 1168 Optics 3328 | . 1236 924 . . 1168 Robot Analysis Total 4 | . 1 2 1 . . Derelict Logs Recovered . | . . . . . . Drone Launches . | . . . . . . Drone Recoveries . | . . . . . . Exploration | -11 -10 -9 -8 -7 -6 ------------- Run | Yrd Mat Mat Mat Fac Fac Turns Passed 6871 | 67 1345 1491 1197 1390 1381 Spaces Moved 2928 | 40 655 548 667 669 349 Core 15 | 15 . . . . . Treads . | . . . . . . Legs 976 | 25 655 262 . . 34 Wheels 1927 | . . 286 667 669 305 Hover 10 | . . . . . 10 Flight . | . . . . . . Fastest Speed 50 | 50 120 135 120 135 210 Average Speed 174 | 135 172 196 134 145 276 Slowest Speed 960 | 200 190 400 135 210 960 Overloaded Moves . | . . . . . . Propulsion Burnouts . | . . . . . . Robots Hopped . | . . . . . . Potential Cave-ins . | . . . . . . Cave-ins Triggered 2 | . . . . 2 . Exploration Rate (%) 38 | 3 93 53 56 16 12 Regions Visited 5 Branch Regions . Pre-discovered Areas . | . . . . . . Known Exits Taken . | . . . . . . Unknown Exits Taken 5 | 1 1 1 1 1 . Scrap Searched . | . . . . . . Spaces Dug . | . . . . . . Terrain Destroyed 73 | . 2 . 16 46 9 Melee . | . . . . . . Projectile 11 | . . . . 2 9 AOE 62 | . 2 . 16 44 . Terrain Rammed . | . . . . . . Walls Destroyed . | . . . . . . Machines Disabled . | . . . . . . Actions | -11 -10 -9 -8 -7 -6 --------- Run | Yrd Mat Mat Mat Fac Fac Total 4089 | 53 788 796 915 953 584 Wait 470 | . 45 45 144 133 103 Move 2923 | 39 654 547 666 668 349 Hop . | . . . . . . Pick Up 140 | 8 21 37 32 25 17 Fast Attach . | . . . . . . Attach 113 | 6 8 26 21 34 18 Detach 11 | . . 2 7 2 . Swap 4 | . . 1 2 1 . Drop 70 | . 9 31 13 12 5 Fire 356 | . 51 106 30 78 91 Melee . | . . . . . . Ram 2 | . . 1 . . 1 Kick . | . . . . . . Crush . | . . . . . . Escape Stasis . | . . . . . . Rewire . | . . . . . . Trap . | . . . . . . Miscellaneous . | . . . . . . Route ------- -11/Scrapyard -10/Materials (discovered 5 exits: *Mat x3 / [*Min x2]) -9/Materials (discovered 2 exits: *Mat / [*Min]) -8/Materials -7/Factory (discovered 2 exits: *Fac / [*Low]) -6/Factory History --------- Turn | Location | Event 16 | -11/Scrapyard | Discovered new exit (range 14) 68 | -11/Scrapyard | Entered Materials 312 | -10/Materials | Build established: Mutant 384 | -10/Materials | Discovered new exit (range 8) 692 | -10/Materials | Discovered new exit (range 12) 879 | -10/Materials | Discovered new exit (range 18) 1084 | -10/Materials | Discovered new exit (range 9) 1196 | -10/Materials | Discovered new exit (range 17) 1285 | -10/Materials | Build established: Scavenger-Mutant 1413 | -10/Materials | Entered another Materials area 1413 | -9/Materials | Evolved 2 slots: Utility x2 1620 | -9/Materials | Destroyed 7 combat bots 1776 | -9/Materials | Build established: Mutant 2287 | -9/Materials | Build established: Scavenger-Mutant 2523 | -9/Materials | Discovered new exit (range 7) 2613 | -9/Materials | Build established: Mutant 2870 | -9/Materials | Discovered new exit (range 13) 2904 | -9/Materials | Entered another Materials area 2904 | -8/Materials | Evolved 2 slots: Power x1, Propulsion x1 2964 | -8/Materials | Repaired Arm. Wheel 3863 | -8/Materials | Discovered new exit (range 11) 3954 | -8/Materials | Repaired Huge Storage Unit 4021 | -8/Materials | Repaired Med. Armor Plating 4101 | -8/Materials | Entered Factory 4101 | -7/Factory | Evolved 2 slots: Utility x2 4175 | -7/Factory | Repaired Arm. Wheel 4209 | -7/Factory | Repaired Arm. Wheel 4307 | -7/Factory | Discovered new exit (range 13) 4465 | -7/Factory | Build established: Hacker-Mutant 4790 | -7/Factory | Cargo convoy interrupted 5038 | -7/Factory | Crushed by falling debris 5194 | -7/Factory | Crushed by falling debris 5194 | -7/Factory | System corruption reached 10% 5224 | -7/Factory | Core integrity fell below 50% 5231 | -7/Factory | Lost 14 parts (2p3n4u5w) 5263 | -7/Factory | Discovered new exit (range 15) 5289 | -7/Factory | Lost 4 parts (1p1n2w) 5491 | -7/Factory | Entered another Factory area 5491 | -6/Factory | Evolved 2 slots: Propulsion x1, Weapon x1 5597 | -6/Factory | Fabricated W-25 Informer (x2) 5773 | -6/Factory | Repaired Coolant Injector 5910 | -6/Factory | Garrison activated, responded to threat 6084 | -6/Factory | Build established: Hacker-Gunner 6562 | -6/Factory | Spotted B-75 Beast 6782 | -6/Factory | Lost 7 parts (2p3u2w) 6807 | -6/Factory | Core integrity fell below 50% 6840 | -6/Factory | Lost 3 parts (1n2w) 6840 | -6/Factory | Core integrity fell below 20% 6872 | -6/Factory | Destroyed by B-75 Beast with Heavy Plasma Cannon Last Messages --------------- 06852_ Knocked back. 06852_ U-05 Engineer destroyed. 06853_ K-01 Serf collects debris. 06855_ Hvy. Assault Rifle destroyed. 06855_ Enh. Optical Array destroyed. 06855_ Critical hit (Blast). 06855_ Knocked back. 06857_ K-01 Serf collects debris. 06859_ R-10 Processor collects Terrain Scan Processor. 06862_ K-01 Serf collects debris. 06863_ R-10 Processor collects Welding Torch. 06865_ Penetrated by Slug. 06866_ K-01 Serf collects debris. 06866_ U-05 Engineer builds a Wall. 06867_ R-10 Processor collects Terrain Scanner. 06869_ K-01 Serf collects debris. 06870_ R-10 Processor collects Wheel. 06870_ U-05 Engineer builds a Wall. [Achievement: First Step to Greatness] [Achievement: 5k Club] Map ----- +----------------------------------------------------+ | ???????????????????????? ??????????????????????? | | ?????????????????????? ??????????????????????? | | ?????????????????????? ??????????????????????? | | ?????????????????????? ??????????????????????? | | ?????????????????????? ??????????????????????? | | ??????????????????????? ??????????????????????? | | ??????????????????????? ??????????????????????? | | ??????????????????????? ??????????????????????? | | ??????????????????????? ??????????????????????? | | ???????????????????????#%%%??????????????????????? | | ???????????????????????#% #?????????????????????? | | ???????????????????????#%% #?????????????????????? | | ???????????????????????# h#?????????????????????? | | ??????????????????????# %#?????????????????????? | | ??????????????????????? h#?????????????????????? | | # ?????????????????????? #?????????????????????? | | # ??????????????????????# R#?????????????????????? | | # ??????????????????????# #?????????????????????? | | # #######???????????????# ##########????????????? | | # #???????????????# #????????????? | | # #??????????????## % #????????????? | | # #??????????????#; #??% #???????? | | + % #??????????????##k ### ########? | | # ##############?## BB | | # % # #?##R% BB [ | | #^ ^# #??#@ %%% %%" | | # % # #??# % %%" """ ? | | # # ! #? # %%%"" """ ==! | | # # ####u % """ =!! | | # % # #### % =!!$ | | # # + % %% | | # % # #######% | | + % + #?????# # | | # # #?????# ? | | # # ! #?????# ? | | # #= #?????+ ?? | | # ##############?????# ##?? | | # #?????????################## #??? | | # #????????????######?????????????? | | # #???????????????????????????????? | | # #???????????????????????????????? | | # #???????????????????????????????? | | # #???????????????????????????????? | | # #???????????????????????????????? | | ########## #???????????????????????????????? | | ?????????# % #???????????????????????????????? | | ?????????# #???????????????????????????????? | | ?????????# #???????????????????????????????? | | ?????????# ##??????????????????????????????? | | ?????????#% T#??????????????????????????????? | +----------------------------------------------------+ Best States ------------- Heat Dissipation 56 Coolant Potential 65 Energy Generation 27 Energy Capacity 530 Matter Stores 350 Matter Capacity 350 Sight Range 22 Terrain Scan Density 110 Power Amplification 20 Base Temperature (-) 100 Armor Coverage 225 Resistance: KI 20 Resistance: TH 20 Resistance: EX 20 Resistance: EM 20 Resistance: I 20 Resistance: S 20 Resistance: P 20 Power Shielding 33 Evasion (%) 55 Targeting Accuracy 8 Target Analysis 5 Kinecelleration 30 Offensive Hacking 10 Defensive Hacking 10 Authchip Count 1 Item Schematics ----------------- None Robot Schematics ------------------ None Fabricated ------------ W-25 Informer | x2 | -6/Factory | Preloaded Repaired ---------- Arm. Wheel | 53% | -8/Materials Huge Storage Unit | 36% | -8/Materials Med. Armor Plating | 55% | -8/Materials Arm. Wheel | 51% | -7/Factory Arm. Wheel | 48% | -7/Factory Coolant Injector | 20% | -6/Factory Alien Tech Used ----------------- None Achievements -------------- 5k Club Armchair Analyst First Step to Greatness My Command Is Your Wish System Compromised Unlikely Earthworm Challenges ------------ None Game ------ Seed MagneticRocketSpiker Manual? 0 Play Time 01:14:40 Cumulative 1.1 hours Start 2025.05.08 @ 23:33:14 End 2025.05.09 @ 00:50:00 Sessions 7 Manual Loads 0 Difficulty Adventurer Special Mode None Game No. 4 Rogue 0 Adventurer 4 Explorer 0 Win Type - Total 0 Types 0/0/0/0/0/0/0/0/0/0 Lore% 3 Gallery% 17 Achievement% 12 Wizard Run 0 Options --------- Layout 0 ASCII 0 Keyboard 0 Movement Mouse Keybinds 0 Fullscreen 1 Font 18/SmallcapsGlow Map View 76x50 Zoom Use 0% Tactical HUD 1 Map Filters NONE Filters NONE Steam 1 RUN: aec638ba-ba2f-408f-ac73-6eb5d3dbb76c